Cogmind - Beta 12 @@@ ROGUE MODE // 2023.11.28 @ 15:03:33 Player: Mozco Result: Destroyed by L-61 Swordsman with Power Sword Performance ------------- Evolutions (6) 3000 Regions Visited (17) 3400 Robots Destroyed (240) 1200 Value Destroyed (11077) 11077 Prototype IDs (8) 160 Alien Tech Used (0) 0 Bonus (8831) 8831 TOTAL SCORE: 27668 Bonus ------- High Alert Combat Kills 4420 Follower Combat Kills 1309 Entered Garrisons 1000 Used RIF Installer 2500 Aligned with FarCom 300 Friendly Fire -698 Cogmind --------- Core Integrity 0/1150 Matter 300/300 Energy 99/100 System Corruption 10% Temperature Cool (0) Movement Core (50) Location -4/Upper Caves Parts ------- > --- POWER (2) -------- (None) > --- PROPULSION (5) --- (None) > --- UTILITY (9) ------ (None) > --- WEAPON (3) ------- (None) > --- INVENTORY (5) ---- Graphene Brace Relay Coupler [NC] (50) Improved Field Recycling Unit (0) Improved Remote Datajack Peak State ------------ > --- POWER ------------ Neutrino Core Particle Reactor > --- PROPULSION ------- Improved Heavy Treads Improved Heavy Siege Treads > --- UTILITY ---------- Advanced Cooling System High-capacity Storage Unit Precision Matter Filter Kinecellerator Layered Medium Armor Plating Advanced Powered Armor Graphene Brace Relay Coupler [Grunt] > --- WEAPON ----------- Gamma Bomb Array Advanced Datajack Longsword +1 > --- INVENTORY -------- Neutrino Core Medium Treads Improved Medium Treads Improved Medium Treads Improved Medium Treads Improved Medium Treads Improved Heavy Treads Advanced Heavy Treads High-capacity Matter Pod Heavy Armor Plating Relay Coupler [NC] Relay Coupler [Brawler] Improved Field Recycling Unit Mass Driver Mass Driver Hardcell Cannon Fusion Bomb Launcher [Rating: 118] Favorites ----------- Power Micro Nuclear Core Engine Improved Ion Engine Power Core Micro Nuclear Core Reactor Antimatter Reactor Propulsion Light Treads Treads Light Treads Leg Aluminum Leg Wheel Compact Wheel Utility High-capacity Storage Unit Device Advanced Cooling System Storage High-capacity Storage Unit Processor Advanced Targeting Computer Hackware Relay Coupler [Grunt] Protection Medium Reactive Plating Weapon Gauss Cannon Energy Gun Particle Gun Energy Cannon Heavy Phase Cannon Ballistic Gun Assault Rifle Ballistic Cannon Gauss Cannon Launcher Heavy Rocket Launcher Special Weapon Remote Datajack Impact Weapon Power Maul Slashing Weapon Longsword +1 Special Melee Weapon Advanced Datajack Build | -11 -10 -10 -10 -9 -8 -8 -8 -8 -7 -7 -7 -7 -6 -6 -5 -4 -4 ------- Run | Jun Mat Min Exi Min Mat Gar Mat Gar Fac Gar Fac Gar Fac Gar Fac Fac Upp Slots Evolved 12 | . . . . . 4 . . . 2 . . . 2 . 2 2 . Power 1 | . . . . . . . . . 1 . . . . . . . . Propulsion 3 | . . . . . 2 . . . . . . . . . . 1 . Utility 7 | . . . . . 2 . . . 1 . . . 1 . 2 1 . Weapon 1 | . . . . . . . . . . . . . 1 . . . . Parts Attached 268 | 6 5 7 3 7 8 5 12 20 11 35 29 18 28 22 48 3 1 Power 25 | 1 1 2 . . 1 . . 1 1 4 2 2 1 3 6 . . Engine 9 | 1 . 1 . . 1 . . 1 . 3 . . . . 2 . . Core 14 | . 1 1 . . . . . . 1 1 1 2 1 2 4 . . Reactor 2 | . . . . . . . . . . . 1 . . 1 . . . Propulsion 54 | 2 . . . 2 3 . 3 6 1 9 5 2 8 4 8 1 . Treads 41 | . . . . 1 3 . 3 6 1 1 4 2 8 4 8 . . Leg 11 | . . . . 1 . . . . . 8 1 . . . . 1 . Wheel 2 | 2 . . . . . . . . . . . . . . . . . Hover . | . . . . . . . . . . . . . . . . . . Flight . | . . . . . . . . . . . . . . . . . . Utility 82 | 1 2 3 2 2 3 2 3 2 5 10 13 6 8 5 15 . . Device 26 | . . . 1 1 . 1 1 . 1 2 3 1 5 . 10 . . Storage 8 | 1 2 1 . 1 . . . . . . 2 . . . 1 . . Processor 5 | . . . . . 1 . 1 . 1 . 2 . . . . . . Hackware 13 | . . . . . . . . . 1 3 1 3 1 3 1 . . Protection 30 | . . 2 1 . 2 1 1 2 2 5 5 2 2 2 3 . . Artifact . | . . . . . . . . . . . . . . . . . . Weapon 107 | 2 2 2 1 3 1 3 6 11 4 12 9 8 11 10 19 2 1 Energy Gun 3 | . . 1 . 1 . . . . . . . . . . . 1 . Energy Cannon 2 | . . . . . . . . . . . . . . . 2 . . Ballistic Gun 4 | 2 1 . . 1 . . . . . . . . . . . . . Ballistic Cannon 43 | . . . . 1 1 1 4 4 4 2 6 3 5 4 8 . . Launcher 26 | . 1 1 . . . 2 2 4 . 2 1 3 3 4 3 . . Special Weapon 3 | . . . . . . . . . . 1 . . 1 . . . 1 Impact Weapon 8 | . . . . . . . . 3 . 5 . . . . . . . Slashing Weapon 8 | . . . 1 . . . . . . 1 . . 2 1 2 1 . Piercing Weapon . | . . . . . . . . . . . . . . . . . . Special Melee Weapon 10 | . . . . . . . . . . 1 2 2 . 1 4 . . Unidentified Prototypes 6 | . . . 2 . . . 1 . . 1 . . 1 . 1 . . Corrupted Parts 6 | . . . . 4 . . . . . . . . . . 2 . . System Corruption 23 | . . . . 14 . . . . . . . . . . 9 . . Parts Lost 73 | . . . . 1 . . 3 7 1 11 2 1 5 5 34 3 . Power 12 | . . . . . . . . 1 . 1 1 . 2 . 7 . . Propulsion 21 | . . . . 1 . . 1 4 1 4 . . . 1 8 1 . Utility 21 | . . . . . . . 1 1 . 4 1 . 2 2 10 . . Weapon 19 | . . . . . . . 1 1 . 2 . 1 1 2 9 2 . Highest Loss Streak 15 | . . . . 1 . . 1 2 1 4 2 1 4 2 15 3 . To Critical Strikes . | . . . . . . . . . . . . . . . . . . Average Slot Usage (%) 89 | . 98 97 98 90 96 100 92 91 99 86 94 91 90 93 76 3 . Engine 3 | . 8 8 14 14 9 9 9 6 7 3 3 . . . . . . Core 5 | . 5 5 . . . . . . 6 8 5 7 6 11 4 . . Reactor 1 | . . . . . . . . . . . 4 7 2 . 3 . . Treads 19 | . . . . . 34 36 36 35 29 4 15 23 22 22 11 . . Leg 3 | . . . . . . . . . . 18 9 . . . . . . Wheel 1 | . 28 28 28 17 . . . . . . . . . . . . . Device 5 | . . . . . 7 . 1 . 5 . 8 9 6 8 15 . . Storage 7 | . 26 19 14 14 9 9 9 9 7 7 7 7 6 6 5 . . Processor 4 | . . . . . 6 9 7 9 8 7 7 3 . . . . . Hackware 5 | . . . . . . . . . . 6 7 5 16 11 3 . . Protection 9 | . . 5 12 13 10 17 10 13 14 8 5 10 6 11 11 . . Ballistic Cannon 9 | . . . . . 10 14 14 9 14 1 13 11 8 12 11 . . Launcher 1 | . 1 2 . . . 3 3 5 . . . 1 2 1 . . . Special Weapon 1 | . . . . . . . . . . 4 . . 1 2 . . . Impact Weapon 1 | . . . . . . . . 3 . 7 1 . . . . . . Naked Turns 211 | . . . . . . . . . . . . . . . . 52 159 Heaviest Build 148 | 12 34 35 30 56 65 67 78 78 81 85 101 120 99 143 148 3 4 Greatest Support 150 | 26 26 26 26 28 88 88 88 88 96 96 127 126 135 150 150 15 3 Greatest Overweight (x) 5 | . 1 1 1 3 1 . . 1 1 4 1 . 1 1 5 . 1 Average Overweight (x) . | . . 1 1 2 . . . . . . . . . . . . . Largest Inventory Capacity 25 | 8 15 15 15 20 20 20 20 20 20 20 25 20 20 20 20 5 5 Average Capacity 19 | 7 14 15 15 19 20 20 20 20 20 20 20 20 20 20 19 5 5 Most Carried 20 | 6 13 15 15 19 20 20 20 20 20 20 20 20 20 20 20 5 4 Average Carried 18 | 3 9 13 15 17 19 20 19 18 19 18 19 18 19 19 16 3 3 Final Capacity 20 | 8 15 15 15 20 20 20 20 20 20 20 20 20 20 20 5 5 5 Final Carried 20 | 6 13 15 15 18 20 20 20 19 20 20 20 20 20 20 1 3 4 Class Distribution -------------------- 59% | Mutant 20% | Bothacker-Mutant 10% | Scavenger-Mutant 3% | Commander-Mutant Dominant Class ---------------- Mutant | -10/Materials Mutant | -10/Mines Mutant | -10/Exiles Mutant | -9/Mines Mutant | -8/Materials Mutant | -8/Garrison Mutant | -8/Materials Mutant | -8/Garrison Mutant | -7/Factory Scavenger-Mutant | -7/Garrison Mutant | -7/Factory Mutant | -7/Garrison Bothacker-Mutant | -6/Factory Bothacker-Mutant | -6/Garrison Mutant | -5/Factory Mutant | -4/Factory Mutant | -4/Upper Caves Resources | -11 -10 -10 -10 -9 -8 -8 -8 -8 -7 -7 -7 -7 -6 -6 -5 -4 -4 ----------- Run | Jun Mat Min Exi Min Mat Gar Mat Gar Fac Gar Fac Gar Fac Gar Fac Fac Upp Matter Collected 8001 | 225 48 269 . 15 111 261 540 806 302 897 508 1004 957 859 1178 . 21 Remotely . | . . . . . . . . . . . . . . . . . . Salvage Created 7714 | . 126 53 . . 109 145 428 705 208 1231 479 634 820 665 2111 . . Parts 380 | . 15 6 . . 5 17 32 34 11 32 19 45 34 35 95 . . Haulers Intercepted 5 | . . . . . . . 3 . . . . . 1 . 1 . . Recyclers Shooed 5 | . . . . . . . 1 . 1 . . . 1 . 2 . . Parts Field Recycled . | . . . . . . . . . . . . . . . . . . Retrieved Matter . | . . . . . . . . . . . . . . . . . . Parts Self-Destructed . | . . . . . . . . . . . . . . . . . . Prevented . | . . . . . . . . . . . . . . . . . . Kills | -11 -10 -10 -10 -9 -8 -8 -8 -8 -7 -7 -7 -7 -6 -6 -5 -4 -4 ------- Run | Jun Mat Min Exi Min Mat Gar Mat Gar Fac Gar Fac Gar Fac Gar Fac Fac Upp Combat Hostiles Destroyed 183 | . 5 2 . . 2 11 14 33 3 18 10 26 16 14 29 . . Melee 11 | . . . . . . . . 2 . 3 . 1 . . 5 . . Guns 4 | . 1 1 . . 2 . . . . . . . . . . . . Cannons 71 | . . . . . . 4 6 11 3 2 9 7 4 11 14 . . AOE 90 | . 4 1 . . . 7 8 19 . 7 1 18 12 3 10 . . Classes Destroyed 17 | . 3 . . . 2 1 3 . 3 2 . 1 1 . 1 . . Worker 16 | . . . . . . . 2 . 1 . . . 6 . 7 . . Builder 14 | . . . . . . . . . 1 . 1 . 3 . 9 . . Hauler 5 | . . . . . . . 3 . . . . . 1 . 1 . . Recycler 10 | . . . . . . . . . 2 . 2 . 1 . 5 . . Mechanic 3 | . . . . . . . . . . . . . 2 . 1 . . Watcher 6 | . 2 . . . . . 2 . . . . . 2 . . . . Swarmer 44 | . 3 . . . . 7 5 8 . 10 1 8 1 1 . . . Saboteur 1 | . . . . . . . . . . . . . . . 1 . . Grunt 60 | . 2 2 . . . 2 5 16 . 5 4 4 8 . 12 . . Brawler 6 | . . . . . 1 . 1 . . . . 1 2 . 1 . . Duelist 7 | . . . . . 1 . . 2 . . . 1 . . 3 . . Sentry 24 | . . . . . . 2 2 6 1 1 3 2 . 4 3 . . Specialist 4 | . . . . . . . . . . 1 . 2 1 . . . . Hunter 22 | . . . . . . . 1 1 . . 1 4 2 6 7 . . Programmer 15 | . . . . . . . . . 2 . 1 4 2 3 3 . . Heavy 1 | . . . . . . . . . . . . 1 . . . . . Behemoth 2 | . . . . . . . . . . 1 . . . 1 . . . Best Kill Streak 15 | . 7 2 . . 2 7 5 6 2 5 5 9 11 4 15 . . Combat Bots Only 9 | . 5 2 . . 2 7 3 6 1 5 2 9 6 4 8 . . Max Kills in Single Turn 6 | . 3 1 . . 1 5 3 4 1 2 2 6 4 1 5 . . Gunslinging . | . . . . . . . . . . . . . . . . . . Exploded 5 | . 2 1 . . . 5 3 4 . 2 1 5 3 1 2 . . Melee 1 | . . . . . . . . 1 . 1 . 1 . . 1 . . Uniques/NPCs Destroyed . | . . . . . . . . . . . . . . . . . . Combat | -11 -10 -10 -10 -9 -8 -8 -8 -8 -7 -7 -7 -7 -6 -6 -5 -4 -4 -------- Run | Jun Mat Min Exi Min Mat Gar Mat Gar Fac Gar Fac Gar Fac Gar Fac Fac Upp Damage Taken 18531 | . 72 101 . 49 97 373 669 1351 219 1594 684 1594 1290 1388 7620 912 518 Core 2624 | . 7 18 . 18 . 34 44 52 14 159 75 95 131 137 659 663 518 Absorbed by Shields 666 | . . . . . . 40 . . . 5 89 502 30 . . . . Reduced by Siege Mode 143 | . . . . . . . . . . . . . . . 143 . . Redirected to Shielding 92 | . . . . . 19 14 8 . 13 38 . . . . . . . Regen/Repaired (Parts) 1141 | . . . . . . . . . . . 428 . 713 . . . . Core Remaining (%) 68 | 100 . . . 82 . . . 76 . . . 51 . 68 34 . . Volleys Fired 462 | . 15 14 . 2 3 17 49 56 14 26 23 58 59 63 61 2 . Largest 3 | . 2 2 . 2 2 2 2 2 2 2 2 2 2 3 3 1 . Hottest 179 | . 50 85 . 85 117 92 92 87 114 114 96 96 101 167 179 60 . Shots Fired 725 | . 17 16 . 4 6 26 72 80 28 29 46 106 82 82 129 2 . Gun 33 | . 12 12 . 4 3 . . . . . . . . . . 2 . Cannon 575 | . . . . . 3 23 63 59 28 12 45 101 68 61 112 . . Launcher 88 | . 5 4 . . . 3 9 21 . 7 1 5 8 8 17 . . Special 29 | . . . . . . . . . . 10 . . 6 13 . . . Kinetic 594 | . 12 10 . 2 3 23 63 59 28 12 45 101 68 61 107 . . Thermal 12 | . . 2 . 2 3 . . . . . . . . . 5 . . Explosive 79 | . 5 4 . . . 3 9 21 . 7 1 5 8 8 8 . . Electromagnetic 11 | . . . . . . . . . . . . . . . 9 2 . Robot Hit Streak 27 | . 3 9 . 3 5 4 5 16 8 13 17 19 10 7 27 2 . Robot Miss Streak 7 | . 1 1 . 1 . 1 4 3 2 1 4 7 3 2 6 . . Penetration Max 1 | . . . . . . . . . . . . . 1 . . . . Secondary Targets . | . . . . . . . . . . . . . . . . . . Shots Hit Robots 569 | . 7 10 . 3 4 13 36 57 21 79 33 74 63 55 110 4 . Core Hits 449 | . 10 7 . . 3 12 33 47 7 28 22 55 67 36 120 2 . Critical Kills 1 | . . . . . . . . . . 1 . . . . . . . Critical Parts Destroyed 7 | . . . . . . . . 3 . 4 . . . . . . . Critical Strikes 51 | . . . . . . 1 4 8 1 8 6 4 7 3 9 . . Blast 37 | . . . . . . 1 4 5 1 2 6 4 7 3 4 . . Smash 8 | . . . . . . . . 3 . 5 . . . . . . . Sever 6 | . . . . . . . . . . 1 . . . . 5 . . Melee Attacks 166 | . . . . . . . . 15 . 90 8 4 9 6 30 4 . Impact 62 | . . . . . . . . 15 . 44 3 . . . . . . Slashing 79 | . . . . . . . . . . 43 . . 3 6 23 4 . Piercing . | . . . . . . . . . . . . . . . . . . Sneak Attacks 12 | . . . . . . . . . . . 5 . 4 . 3 . . Combat Hostiles . | . . . . . . . . . . . . . . . . . . Follow-up Attacks . | . . . . . . . . . . . . . . . . . . Damage Inflicted 31178 | . 382 235 . 43 123 899 1874 3330 613 5562 1314 3395 3570 2529 7156 135 18 Guns 310 | . 71 129 . 43 58 . . . . . . . . . . 9 . Cannons 10888 | . . . . . 65 312 840 842 576 327 790 1870 1418 1151 2697 . . Explosions 13179 | . 311 106 . . . 587 1025 2194 . 670 371 1518 2035 797 3565 . . Melee 6492 | . . . . . . . . 294 . 4556 . . 100 581 872 89 . Ramming 309 | . . . . . . . 9 . 37 9 153 7 17 . 22 37 18 Kinetic 10996 | . 71 114 . 27 65 312 840 842 576 327 790 1870 1418 1151 2593 . . Thermal 451 | . . 15 . 16 58 . . . . . . . 92 . 270 . . Explosive 11620 | . 311 106 . . . 587 1025 2194 . 670 371 1518 1943 797 2098 . . Electromagnetic 1310 | . . . . . . . . . . . . . . . 1301 9 . Impact 1014 | . . . . . . . . 294 . 720 . . . . . . . Slashing 5478 | . . . . . . . . . . 3836 . . 100 581 872 89 . Piercing . | . . . . . . . . . . . . . . . . . . Highest Corruption 15 | . . . . 15 . . . 4 2 2 2 10 . 1 14 10 10 Average Corruption 3 | . . . . 1 . . . 4 1 2 2 6 . 1 6 3 10 Corruption Purged . | . . . . . . . . . . . . . . . . . . Corruption Blocked . | . . . . . . . . . . . . . . . . . . Effects 154 | . . . . . . . . 11 . 37 25 42 . 12 18 2 7 Message Errors 34 | . . . . . . . . 1 . 7 6 10 . 4 4 . 2 Matter Fused 32 | . . . . . . . . 4 . 12 5 6 . 3 2 . . Heat Flow Errors 24 | . . . . . . . . 2 . 5 4 7 . 2 2 . 2 Energy Discharges 25 | . . . . . . . . 3 . 1 4 9 . 2 4 1 1 Parts Rejected 1 | . . . . . . . . . . . . . . . 1 . . Data Loss (minor) 14 | . . . . . . . . . . 8 2 3 . . . . 1 Data Loss (major) 10 | . . . . . . . . . . 4 2 1 . . 2 . 1 Misfires 7 | . . . . . . . . 1 . . 1 2 . 1 2 . . Alerts 5 | . . . . . . . . . . . 1 2 . . 1 1 . Weapon Failures 2 | . . . . . . . . . . . . 2 . . . . . Overload Shots . | . . . . . . . . . . . . . . . . . . Overflow Damage 1159 | . . . . . . 22 8 246 2 357 20 67 123 33 281 . . Projectiles 240 | . . . . . . . 8 . 2 . 16 53 79 9 73 . . Explosions 430 | . . . . . . 22 . 84 . 34 . 14 44 24 208 . . Melee 489 | . . . . . . . . 162 . 323 4 . . . . . . Knockbacks 85 | . . . . . 2 3 12 4 6 3 5 14 12 3 21 . . Impact 8 | . . . . . . . . 1 1 2 3 . . . 1 . . Kinetic 74 | . . . . . 2 3 10 3 5 1 2 14 12 3 19 . . Secondary 3 | . . . . . . . 2 . . . . . . . 1 . . Self-Inflicted Damage 1061 | . . 19 . . . 134 37 56 . . 21 308 59 57 361 1 8 Shots 52 | . . 1 . . . 3 1 5 . . 1 14 3 3 21 . . Rammed 27 | . . . . . . . 1 . 3 5 7 . 1 . 3 4 3 Targets Rammed 48 | . . . . . . . 1 . 4 5 7 1 1 . 3 23 3 Kicked 19 | . . . . . . . . . . . . . . . . 19 . Crushed 2 | . . . . . . . . . 1 . . 1 . . . . . Highest Temperature 491 | . 2 48 . 24 117 214 288 374 276 303 265 491 9 235 441 . 181 Average Temperature 103 | . 2 16 . 13 58 74 94 106 79 119 96 107 7 93 129 . 97 Received Heat Transfer 4113 | . 18 45 . . . 72 315 468 18 396 166 112 481 165 1710 24 123 Effects 18 | . . . . . . . . 3 1 2 1 6 . . 5 . . Shutdowns 4 | . . . . . . . . 1 . . . 2 . . 1 . . Energy Bleed 4 | . . . . . . . . 1 1 . 1 1 . . . . . Interference 7 | . . . . . . . . . . 2 . 2 . . 3 . . Matter Decay 1 | . . . . . . . . 1 . . . . . . . . . Damage (minor) 2 | . . . . . . . . . . . . 1 . . 1 . . Siege Activations 1 | . . . . . . . . . . . . . . . 1 . . Total Turns 35 | . . . . . . . . . . . . . . . 35 . . Longest Duration 35 | . . . . . . . . . . . . . . . 35 . . Robots Corrupted . | . . . . . . . . . . . . . . . . . . Combat Hostiles . | . . . . . . . . . . . . . . . . . . Parts Fried 5 | . . . . . . . . 1 . 2 . . . . 2 . . Impact Corruptions 17 | . . . . . . . . 4 . 10 2 . . . 1 . . Robots Melted . | . . . . . . . . . . . . . . . . . . Combat Hostiles . | . . . . . . . . . . . . . . . . . . Parts Melted . | . . . . . . . . . . . . . . . . . . Heat Transferred 446 | . . 37 . 37 111 . . . . . . . 50 . 211 . . Parts Sabotaged 1 | . . . . . . . . . . . . . . . 1 . . Parts Stolen . | . . . . . . . . . . . . . . . . . . Parts Stripped . | . . . . . . . . . . . . . . . . . . Power Chain Reactions 6 | . . . . . . . . . . . . . . . 6 . . Missiles Intercepted . | . . . . . . . . . . . . . . . . . . Alert | -11 -10 -10 -10 -9 -8 -8 -8 -8 -7 -7 -7 -7 -6 -6 -5 -4 -4 ------- Run | Jun Mat Min Exi Min Mat Gar Mat Gar Fac Gar Fac Gar Fac Gar Fac Fac Upp Peak Influence 2189 | . 166 162 . . 75 436 603 1318 728 1354 727 1593 1662 2055 2189 1037 . Initial 1078 | . . 64 . . . 48 212 333 691 288 710 451 835 1078 1078 988 . Average 892 | . 104 135 . . 18 169 393 885 547 854 622 1099 1210 1608 1337 1013 . Maximum Alert Level 5 | . . . . . . 2 2 4 3 4 3 4 5 5 5 3 . Low Security (%) 7 | 100 100 100 . 100 100 80 . . . . . . . . . . . Level 1 6 | . . . . . . 6 56 6 12 4 3 . . . . . . Level 2 26 | . . . . . . 12 43 28 75 25 70 11 . . . . . Level 3 24 | . . . . . . . . 27 11 50 26 33 33 7 28 100 . Level 4 24 | . . . . . . . . 38 . 20 . 55 57 33 47 . . Level 5 10 | . . . . . . . . . . . . . 8 58 24 . . High Security . | . . . . . . . . . . . . . . . . . . Max Security . | . . . . . . . . . . . . . . . . . . Squads Dispatched 29 | . . . . . 1 . 1 . 2 . 7 . 8 . 10 . . Investigation . | . . . . . . . . . . . . . . . . . . Extermination 7 | . . . . . . . . . 2 . 2 . 2 . 1 . . Reinforcement 14 | . . . . . . . 1 . . . 5 . 4 . 4 . . Assault 5 | . . . . . . . . . . . . . 2 . 3 . . Garrison 3 | . . . . . 1 . . . . . . . . . 2 . . Intercept . | . . . . . . . . . . . . . . . . . . Searches Triggered . | . . . . . . . . . . . . . . . . . . Construction Impeded 6 | . . . . . . . . . . . 1 . 1 . 4 . . Haulers Reinforced 1 | . . . . . . . . . . . . . 1 . . . . Active Scanning Responses . | . . . . . . . . . . . . . . . . . . Cargo Convoy Interrupts . | . . . . . . . . . . . . . . . . . . Stealth | -11 -10 -10 -10 -9 -8 -8 -8 -8 -7 -7 -7 -7 -6 -6 -5 -4 -4 --------- Run | Jun Mat Min Exi Min Mat Gar Mat Gar Fac Gar Fac Gar Fac Gar Fac Fac Upp Distress Signals 10 | . 1 . . . . . . . . . 3 . 1 . 4 1 . Communications Jammed . | . . . . . . . . . . . . . . . . . . Distress Signals . | . . . . . . . . . . . . . . . . . . Times Spotted 310 | . 8 2 . . 3 12 24 30 7 26 22 26 39 27 66 5 13 Peak Tracking Total 9 | . 5 2 . . 3 7 5 4 2 6 4 7 6 4 9 6 8 Tactical Retreats 14 | . . . . . . . . . . . . 4 . 1 4 3 2 Traps | -11 -10 -10 -10 -9 -8 -8 -8 -8 -7 -7 -7 -7 -6 -6 -5 -4 -4 ------- Run | Jun Mat Min Exi Min Mat Gar Mat Gar Fac Gar Fac Gar Fac Gar Fac Fac Upp Traps Triggered 30 | . . . . 1 . 2 . . 1 11 . 3 . 7 4 1 . Indirectly 3 | . . . . . . . . . . . . . . . 3 . . Trap Hack Attempts . | . . . . . . . . . . . . . . . . . . Triggered . | . . . . . . . . . . . . . . . . . . Disarmed . | . . . . . . . . . . . . . . . . . . Reprogrammed . | . . . . . . . . . . . . . . . . . . Reused . | . . . . . . . . . . . . . . . . . . Traps Extracted . | . . . . . . . . . . . . . . . . . . Installed . | . . . . . . . . . . . . . . . . . . Triggered . | . . . . . . . . . . . . . . . . . . Machines | -11 -10 -10 -10 -9 -8 -8 -8 -8 -7 -7 -7 -7 -6 -6 -5 -4 -4 ---------- Run | Jun Mat Min Exi Min Mat Gar Mat Gar Fac Gar Fac Gar Fac Gar Fac Fac Upp Machines Disabled 69 | . . 2 . . . 2 4 8 . 4 2 4 29 4 10 . . Max in Single Turn 12 | . . 2 . . . 1 1 1 . 1 . 1 12 1 3 . . Garrison Access 1 | . . . . . . . . . . . . . . . 1 . . Garrison Relay 9 | . . . . . . 1 . 1 . 4 . 2 . 1 . . . Phase Generator 1 | . . . . . . . . . . . . 1 . . . . . Machines Repaired . | . . . . . . . . . . . . . . . . . . Machines Sabotaged . | . . . . . . . . . . . . . . . . . . Overloaded Fab Kills . | . . . . . . . . . . . . . . . . . . Hacking | -11 -10 -10 -10 -9 -8 -8 -8 -8 -7 -7 -7 -7 -6 -6 -5 -4 -4 --------- Run | Jun Mat Min Exi Min Mat Gar Mat Gar Fac Gar Fac Gar Fac Gar Fac Fac Upp Machines Accessed 49 | . 3 . . 1 3 1 8 2 6 3 9 2 7 2 1 1 . Terminals 31 | . 3 . . . 2 1 6 2 2 3 3 2 4 2 . 1 . Fabricators 1 | . . . . . . . . . . . 1 . . . . . . Repair Stations 4 | . . . . . . . . . . . 2 . 1 . 1 . . Recycling Units 6 | . . . . . . . 1 . 3 . 2 . . . . . . Scanalyzers 1 | . . . . . . . . . . . . . 1 . . . . Garrison Access 5 | . . . . . 1 . 1 . 1 . 1 . 1 . . . . Total Hacks 118 | . 8 . . 1 6 2 26 3 10 6 21 4 24 4 2 1 . Successful 55 | . 3 . . 1 2 . 13 1 6 1 11 1 13 2 1 . . Failed 63 | . 5 . . . 4 2 13 2 4 5 10 3 11 2 1 1 . Catastrophic 14 | . 1 . . . . 1 2 1 . 2 1 2 3 . 1 . . Database Lockouts . | . . . . . . . . . . . . . . . . . . Manual 38 | . 7 . 1 . . . 11 . 2 . 5 . 11 . . 1 . Terminals 85 | . 8 . . . 4 2 24 3 4 6 10 4 15 4 . 1 . Fabricators 2 | . . . . . . . . . . . 2 . . . . . . Repair Stations 10 | . . . . . . . . . . . 4 . 4 . 2 . . Recycling Units 10 | . . . . . . . 1 . 5 . 4 . . . . . . Scanalyzers 4 | . . . . . . . . . . . . . 4 . . . . Garrison Access 6 | . . . . . 2 . 1 . 1 . 1 . 1 . . . . Terminal Hacks 21 | . 3 . . 1 1 . 6 1 . 1 3 1 2 2 . . . Robot Analysis 3 | . 2 . . . . . 1 . . . . . . . . . . Prototype ID Bank 1 | . . . . . . . 1 . . . . . . . . . . Open Door 1 | . . . . 1 . . . . . . . . . . . . . Emergency Access Points 4 | . . . . . . . . 1 . 1 1 . . 1 . . . Repair Station Index 1 | . . . . . . . . . . . 1 . . . . . . Recycling Unit Index 1 | . . . . . 1 . . . . . . . . . . . . Alert Level 2 | . . . . . . . 2 . . . . . . . . . . Unreport Threat 1 | . . . . . . . . . . . . . 1 . . . . Locate Traps 2 | . 1 . . . . . . . . . 1 . . . . . . Zone Layout 3 | . . . . . . . 2 . . . . . 1 . . . . Garrison Registry 1 | . . . . . . . . . . . . 1 . . . . . Security Stations 1 | . . . . . . . . . . . . . . 1 . . . Fabricator Hacks 1 | . . . . . . . . . . . 1 . . . . . . Network Status 1 | . . . . . . . . . . . 1 . . . . . . Repair Station Hacks 7 | . . . . . . . . . . . 2 . 4 . 1 . . Scan Component 4 | . . . . . . . . . . . 1 . 2 . 1 . . Repair 3 | . . . . . . . . . . . 1 . 2 . . . . Recycling Unit Hacks 6 | . . . . . . . 1 . 3 . 2 . . . . . . Process 1 | . . . . . . . . . 1 . . . . . . . . Report Inventory 3 | . . . . . . . 1 . 1 . 1 . . . . . . Retrieve Matter 1 | . . . . . . . . . . . 1 . . . . . . Retrieve Components 1 | . . . . . . . . . 1 . . . . . . . . Scanalyzer 1 | . . . . . . . . . . . . . 1 . . . . Insert Component 1 | . . . . . . . . . . . . . 1 . . . . Garrison Access Hacks 5 | . . . . . 1 . 1 . 1 . 1 . 1 . . . . Unlock Access 5 | . . . . . 1 . 1 . 1 . 1 . 1 . . . . Unauthorized Hacks 14 | . . . . . . . 5 . 2 . 2 . 5 . . . . Terminals 14 | . . . . . . . 5 . 2 . 2 . 5 . . . . Track 3 | . . . . . . . 1 . . . 1 . 1 . . . . Assimilate 2 | . . . . . . . . . 1 . . . 1 . . . . Botnet 8 | . . . . . . . 4 . 1 . 1 . 2 . . . . Operators 1 | . . . . . . . . . . . . . 1 . . . . Fabricators . | . . . . . . . . . . . . . . . . . . Repair Stations . | . . . . . . . . . . . . . . . . . . Recycling Units . | . . . . . . . . . . . . . . . . . . Scanalyzers . | . . . . . . . . . . . . . . . . . . Garrison Access . | . . . . . . . . . . . . . . . . . . Data Cores Recovered 1 | . . . . . . . . . . . . . 1 . . . . Used . | . . . . . . . . . . . . . . . . . . Hacking Detections 41 | . 3 . . . 3 1 7 1 5 2 7 2 7 1 1 1 . Full Trace Events 7 | . . . . . . 1 . 1 . 2 . 2 . 1 . . . Feedback Events . | . . . . . . . . . . . . . . . . . . Feedback Blocked . | . . . . . . . . . . . . . . . . . . Robot Schematics Acquired . | . . . . . . . . . . . . . . . . . . Robots Built . | . . . . . . . . . . . . . . . . . . Authchips . | . . . . . . . . . . . . . . . . . . Time . | . . . . . . . . . . . . . . . . . . Total Robot Build Rating . | . . . . . . . . . . . . . . . . . . Part Schematics Acquired . | . . . . . . . . . . . . . . . . . . Parts Built . | . . . . . . . . . . . . . . . . . . Authchips . | . . . . . . . . . . . . . . . . . . Time . | . . . . . . . . . . . . . . . . . . Total Part Build Rating . | . . . . . . . . . . . . . . . . . . Parts Repaired 3 | . . . . . . . . . . . 1 . 2 . . . . Time 143 | . . . . . . . . . . . 31 . 112 . . . . Parts Recycled . | . . . . . . . . . . . . . . . . . . Recycled Matter 8 | . . . . . . . . . 8 . . . . . . . . Retrieved Matter . | . . . . . . . . . . . . . . . . . . Retrieved Components 1 | . . . . . . . . . 1 . . . . . . . . Parts Scanalyzed 1 | . . . . . . . . . . . . . 1 . . . . Part Schematics Acquired . | . . . . . . . . . . . . . . . . . . Parts Damaged . | . . . . . . . . . . . . . . . . . . Bothacking | -11 -10 -10 -10 -9 -8 -8 -8 -8 -7 -7 -7 -7 -6 -6 -5 -4 -4 ------------ Run | Jun Mat Min Exi Min Mat Gar Mat Gar Fac Gar Fac Gar Fac Gar Fac Fac Upp Used RIF Installer 5 | . . . . . . 1 . 1 . 1 . 1 . 1 . . . Coupler Efficiency 1 | . . . . . . . . . . 1 . . . . . . . Hotswap 1 | . . . . . . . . 1 . . . . . . . . . Command Fork 1 | . . . . . . . . . . . . 1 . . . . . Autoassimilate 1 | . . . . . . . . . . . . . . 1 . . . Robots Hacked 40 | . . . . . . . . . . 11 2 4 9 8 6 . . Non-combat 7 | . . . . . . . . . . . 2 . 3 . 2 . . Combat 33 | . . . . . . . . . . 11 . 4 6 8 4 . . Autoassimilated 1 | . . . . . . . . . . . . . . 1 . . . Robot Hacks Applied 45 | . . . . . . . . . . 11 5 4 12 7 6 . . parse_system 2 | . . . . . . . . . . . . . 1 . 1 . . no_distress 5 | . . . . . . . . . . . . . 3 . 2 . . find_dsf 1 | . . . . . . . . . . . . . 1 . . . . purge_threat 2 | . . . . . . . . . . . 2 . . . . . . locate_traps 1 | . . . . . . . . . . . 1 . . . . . . find_garrison 1 | . . . . . . . . . . . . . 1 . . . . reboot_propulsion 1 | . . . . . . . . . . . . . 1 . . . . link_complan 2 | . . . . . . . . . . 1 . . . 1 . . . disrupt_area 1 | . . . . . . . . . . . . . . 1 . . . overload_power 2 | . . . . . . . . . . 1 . . 1 . . . . amplify_resonance 4 | . . . . . . . . . . 1 . . 1 2 . . . reboot_system 2 | . . . . . . . . . . 1 . . . 1 . . . overwrite_iff 5 | . . . . . . . . . . 2 . . 2 . 1 . . streamctrl_high 1 | . . . . . . . . . . . . . . . 1 . . formatsys_low 2 | . . . . . . . . . . . 2 . . . . . . formatsys_high 13 | . . . . . . . . . . 5 . 4 1 2 1 . . Relay Couplers Released 37 | . . . . . . 5 . 4 . 12 . 9 . 5 2 . . Machine Destruction 37 | . . . . . . 5 . 4 . 12 . 9 . 5 2 . . Attached 12 | . . . . . . . . . . 3 1 3 1 3 1 . . Fabnet Peak Effective % . | . . . . . . . . . . . . . . . . . . Robots Rewired 5 | . . . . . . . . . 1 3 . 1 . . . . . Allies Hacked . | . . . . . . . . . . . . . . . . . . Hacks Repelled . | . . . . . . . . . . . . . . . . . . Allies | -11 -10 -10 -10 -9 -8 -8 -8 -8 -7 -7 -7 -7 -6 -6 -5 -4 -4 -------- Run | Jun Mat Min Exi Min Mat Gar Mat Gar Fac Gar Fac Gar Fac Gar Fac Fac Upp Total Allies 32 | . . . . . . . . . 1 10 2 6 4 3 6 . . Largest Group 5 | . . . . . . . . . 1 4 5 2 2 2 3 . . Highest-Rated Group 161 | . . . . . . . . . 32 125 161 90 90 79 93 . . Highest-Rated Ally 85 | . . . . . . . . . 32 85 85 58 58 47 31 . . Total Orders 4 | . . . . . . . . . . . 4 . . . . . . STAY 2 | . . . . . . . . . . . 2 . . . . . . ROAM 2 | . . . . . . . . . . . 2 . . . . . . Ally Attacks 198 | . . . . . . . . . 4 39 39 7 38 21 50 . . Total Damage 5370 | . . . . . . . . . 161 893 1594 125 1009 726 862 . . Kills 53 | . . . . . . . . . 2 5 18 . 9 8 11 . . Allies Corrupted . | . . . . . . . . . . . . . . . . . . Allies Melted 1 | . . . . . . . . . . 1 . . . . . . . Intel | -11 -10 -10 -10 -9 -8 -8 -8 -8 -7 -7 -7 -7 -6 -6 -5 -4 -4 ------- Run | Jun Mat Min Exi Min Mat Gar Mat Gar Fac Gar Fac Gar Fac Gar Fac Fac Upp Robot Analysis Total 3 | . 2 . . . . . 1 . . . . . . . . . . Derelict Logs Recovered 2 | . . . . 1 . . . . . . . . . . . . 1 Drone Launches . | . . . . . . . . . . . . . . . . . . Drone Recoveries . | . . . . . . . . . . . . . . . . . . Exploration | -11 -10 -10 -10 -9 -8 -8 -8 -8 -7 -7 -7 -7 -6 -6 -5 -4 -4 ------------- Run | Jun Mat Min Exi Min Mat Gar Mat Gar Fac Gar Fac Gar Fac Gar Fac Fac Upp Turns Passed 15471 | 67 241 211 262 178 174 411 935 1101 1461 2212 2044 1434 1162 1803 1458 156 161 Spaces Moved 8546 | 58 188 158 244 124 87 226 419 546 731 1025 1354 709 577 962 608 220 310 Core 538 | 2 . . . . . . . . . . . . . . 8 218 310 Treads 6182 | . . . . 1 87 226 419 546 731 532 792 709 577 962 600 . . Legs 1057 | . . . . . . . . . . 493 562 . . . . 2 . Wheels 769 | 56 188 158 244 123 . . . . . . . . . . . . . Hover . | . . . . . . . . . . . . . . . . . . Flight . | . . . . . . . . . . . . . . . . . . Fastest Speed 50 | 50 90 105 105 105 160 160 160 160 160 100 105 160 152 152 50 50 50 Average Speed 146 | 88 103 105 105 129 165 160 160 161 160 162 137 160 157 163 166 50 50 Slowest Speed 400 | 90 105 105 105 240 240 160 160 240 240 400 240 160 240 236 300 90 100 Overloaded Moves . | . . . . . . . . . . . . . . . . . . Propulsion Burnouts . | . . . . . . . . . . . . . . . . . . Robots Hopped . | . . . . . . . . . . . . . . . . . . Cave-ins Triggered 1 | . . . . . . . . 1 . . . . . . . . . Exploration Rate (%) 38 | 4 41 45 60 33 8 28 39 75 16 89 37 63 16 72 17 8 50 Regions Visited 17 Branch Regions 4 Pre-discovered Areas . | . . . . . . . . . . . . . . . . . . Known Exits Taken 5 | . . . . . 1 . 1 . 1 . 1 . 1 . . . . Unknown Exits Taken 7 | 1 1 1 1 1 . . . . . . . . . . 1 1 . Scrap Searched 4 | . . 1 . 1 . . . . . . . . . . . . 2 Spaces Dug 124 | . . 5 . . . 29 11 25 . 16 2 21 2 10 1 2 . Terrain Destroyed 839 | . 9 19 . . . 47 113 147 5 24 53 103 158 32 127 2 . Melee 7 | . . . . . . . . . . . 2 . 2 . 1 2 . Projectile 91 | . . . . . . . 19 . 5 . 11 2 12 2 40 . . AOE 741 | . 9 19 . . . 47 94 147 . 24 40 101 144 30 86 . . Terrain Rammed . | . . . . . . . . . . . . . . . . . . Walls Destroyed . | . . . . . . . . . . . . . . . . . . Machines Disabled . | . . . . . . . . . . . . . . . . . . Actions | -11 -10 -10 -10 -9 -8 -8 -8 -8 -7 -7 -7 -7 -6 -6 -5 -4 -4 --------- Run | Jun Mat Min Exi Min Mat Gar Mat Gar Fac Gar Fac Gar Fac Gar Fac Fac Upp Total 10618 | 70 214 187 249 137 113 247 617 651 987 1407 1491 899 746 1115 914 259 315 Wait 685 | 1 . . . . . . 101 2 122 113 25 85 53 33 146 4 . Move 8531 | 57 187 157 243 123 86 225 419 545 731 1024 1353 708 576 961 607 219 310 Hop . | . . . . . . . . . . . . . . . . . . Pick Up 141 | 6 6 3 . 4 10 . 15 10 7 21 16 11 10 11 10 1 . Fast Attach 76 | 6 2 3 3 . 1 . 4 . 5 11 15 1 6 6 11 1 1 Attach 69 | . . 1 . 1 5 . 1 8 2 8 4 2 5 5 25 2 . Detach 9 | . . 1 . . . . 1 . . 2 . . . 1 . 3 1 Swap 124 | . 3 3 . 6 2 5 8 12 4 16 10 15 17 11 12 . . Drop 138 | . 1 5 3 1 6 . 18 4 5 20 30 12 10 14 9 . . Fire 462 | . 15 14 . 2 3 17 49 56 14 26 23 58 59 63 61 2 . Melee 163 | . . . . . . . . 14 . 88 8 4 9 6 30 4 . Ram 7 | . . . . . . . . . . . . . . . . 4 3 Kick 19 | . . . . . . . . . . . . . . . . 19 . Crush 22 | . . . . . . . 1 . 4 5 7 1 1 . 3 . . Escape Stasis 49 | . . . . . . . . . . 45 . . . 4 . . . Rewire 123 | . . . . . . . . . 93 28 . 2 . . . . . Trap . | . . . . . . . . . . . . . . . . . . Miscellaneous . | . . . . . . . . . . . . . . . . . . Route ------- -11/Junkyard -10/Materials -10/Mines (discovered 2 exits: [*Mat] / *Exi) -10/Exiles -9/Mines -8/Materials (discovered 2 exits: Fac / Gar) -8/Garrison -8/Materials (discovered 3 exits: *Fac / [*Sto] / Gar) -8/Garrison (discovered 3 exits: *Fac x3) -7/Factory (discovered 2 exits: *Fac / Gar) -7/Garrison (discovered 3 exits: *Fac x3) -7/Factory (discovered 4 exits: *Fac / [*Low x2] / Gar) -7/Garrison (discovered 3 exits: *Fac x3) -6/Factory (discovered 2 exits: *Fac / Gar) -6/Garrison (discovered 2 exits: *Fac x2) -5/Factory -4/Factory -4/Upper Caves History --------- Turn | Location | Event 10 | -11/Junkyard | Discovered new exit (range 15) 68 | -11/Junkyard | Entered Materials 188 | -10/Materials | Discovered new exit (range 16) 309 | -10/Materials | Entered Mines 314 | -10/Mines | Build established: Mutant 472 | -10/Mines | Discovered new exit (range 9) 515 | -10/Mines | Deemed a non-threat by the Exiles lab entrance 515 | -10/Mines | Discovered new exit (range 5) 520 | -10/Mines | Entered Exiles 547 | -10/Exiles | Met 8R-AWN 565 | -10/Exiles | Met EX-HEX 596 | -10/Exiles | Met EX-BIN 610 | -10/Exiles | Aligned with FarCom system 611 | -10/Exiles | Given EX-Vault access code 635 | -10/Exiles | Opened EX-Vault 641 | -10/Exiles | Found Prototype Device 641 | -10/Exiles | Identified Chronowheel 641 | -10/Exiles | Activated Chronowheel 644 | -10/Exiles | Found Prototype Slashing Weapon 644 | -10/Exiles | Identified Longsword +1 690 | -10/Exiles | Warned to stay clear of 0b10 Research branches 720 | -10/Exiles | Met EX-DEC 771 | -10/Exiles | Discovered new exit (range 11) 782 | -10/Exiles | Left Exiles lab with Longsword +1 782 | -10/Exiles | Entered Mines 829 | -9/Mines | Learned location of 1 exit from Materials 837 | -9/Mines | Met a Derelict who couldn't figure out how to use a Trap Extractor 904 | -9/Mines | Found a hidden stash of uninstalled traps 942 | -9/Mines | Discovered new exit (range 8) 958 | -9/Mines | System corruption reached 10% 960 | -9/Mines | Entered Materials 960 | -8/Materials | Evolved 4 slots: Propulsion x2, Utility x2 961 | -8/Materials | Identified exit to Factory 1091 | -8/Materials | Garrison activated, responded to threat 1091 | -8/Materials | Identified exit to Garrison 1134 | -8/Materials | Entered Garrison 1226 | -8/Garrison | Triggered checkpoint 1274 | -8/Garrison | Garrison Relay disabled 1402 | -8/Garrison | Triggered checkpoint 1492 | -8/Garrison | Discovered new exit (range 12) 1511 | -8/Garrison | Installed Relay Interface Framework 1513 | -8/Garrison | Destroyed 7 combat bots 1545 | -8/Garrison | Entered Materials 2173 | -8/Materials | Discovered exit to Factory (range 4) 2386 | -8/Materials | Discovered new exit (range 14) 2480 | -8/Materials | Identified exit to Garrison 2480 | -8/Materials | Entered Garrison 2582 | -8/Garrison | Triggered checkpoint 2647 | -8/Garrison | Garrison Relay disabled 2756 | -8/Garrison | Triggered checkpoint 2768 | -8/Garrison | Triggered checkpoint 2854 | -8/Garrison | Triggered checkpoint 2911 | -8/Garrison | Discovered exit to Factory (range 14) 3026 | -8/Garrison | Triggered checkpoint 3134 | -8/Garrison | Discovered exit to Factory (range 12) 3201 | -8/Garrison | Crushed by falling debris 3236 | -8/Garrison | Triggered checkpoint 3377 | -8/Garrison | Expanded RIF knowledge: Hotswap 3389 | -8/Garrison | Discovered exit to Factory (range 12) 3581 | -8/Garrison | Entered Factory 3581 | -7/Factory | Evolved 2 slots: Power x1, Utility x1 3957 | -7/Factory | Discovered new exit (range 9) 5042 | -7/Factory | Identified exit to Garrison 5042 | -7/Factory | Entered Garrison 5078 | -7/Garrison | Expanded RIF knowledge: Coupler Efficiency 5116 | -7/Garrison | Triggered checkpoint 5148 | -7/Garrison | Garrison Relay disabled 5351 | -7/Garrison | Lost 4 parts (3u1w) 5619 | -7/Garrison | Discovered new exit (range 8) 5626 | -7/Garrison | Build established: Scavenger-Mutant 5674 | -7/Garrison | Garrison Relay disabled 5698 | -7/Garrison | Garrison Relay disabled 6313 | -7/Garrison | Spotted B-75 Beast 6313 | -7/Garrison | Spotted B-75 Beast 6384 | -7/Garrison | Discovered new exit (range 7) 6454 | -7/Garrison | Triggered checkpoint 6521 | -7/Garrison | Garrison Relay disabled 6661 | -7/Garrison | Discovered new exit (range 9) 7001 | -7/Garrison | Assimilated Beast 4a with formatsys_high 7015 | -7/Garrison | Destroyed B-75 Beast 7254 | -7/Garrison | Entered Factory 7254 | -7/Factory | Accompanied by 3 allies 7684 | -7/Factory | Build established: Mutant 7727 | -7/Factory | Repaired Imp. Heavy Treads 8100 | -7/Factory | Build established: Commander-Mutant 8209 | -7/Factory | Discovered new exit (range 11) 8216 | -7/Factory | Found Powered Armor 8367 | -7/Factory | Found Rocket Array 8438 | -7/Factory | Build established: Mutant 8740 | -7/Factory | Discovered new exit (range 10) 8988 | -7/Factory | Discovered new exit (range 15) 9288 | -7/Factory | Identified exit to Garrison 9298 | -7/Factory | Entered Garrison 9330 | -7/Garrison | Triggered checkpoint 9444 | -7/Garrison | Triggered checkpoint 9454 | -7/Garrison | Garrison Relay disabled 9488 | -7/Garrison | Destroyed 7 combat bots 9556 | -7/Garrison | Triggered checkpoint 9590 | -7/Garrison | Expanded RIF knowledge: Command Fork 9787 | -7/Garrison | Phase Generator disabled 9827 | -7/Garrison | Heavy support dispatched to Factory 9827 | -7/Garrison | Garrison Relay disabled 10102 | -7/Garrison | Heavy support dispatched to Factory 10109 | -7/Garrison | System corruption reached 10% 10496 | -7/Garrison | Triggered checkpoint 10507 | -7/Garrison | Triggered checkpoint 10539 | -7/Garrison | Destroyed 9 combat bots 10608 | -7/Garrison | Triggered checkpoint 10636 | -7/Garrison | Discovered new exit (range 75) 10636 | -7/Garrison | Discovered new exit (range 24) 10636 | -7/Garrison | Discovered new exit (range 48) 10722 | -7/Garrison | Build established: Bothacker-Mutant 10732 | -7/Garrison | Entered Factory 10732 | -6/Factory | Accompanied by 2 allies 10732 | -6/Factory | Evolved 2 slots: Utility x1, Weapon x1 11082 | -6/Factory | First assault squad dispatched 11305 | -6/Factory | Lost 4 parts (1p2u1w) 11366 | -6/Factory | Discovered new exit (range 15) 11443 | -6/Factory | Repaired Imp. Heavy Treads? 11515 | -6/Factory | Repaired Imp. Medium Treads? 11877 | -6/Factory | Identified exit to Garrison 11894 | -6/Factory | Entered Garrison 11894 | -6/Garrison | Accompanied by 1 ally 12032 | -6/Garrison | Triggered checkpoint 12064 | -6/Garrison | Garrison Relay disabled 12096 | -6/Garrison | Expanded RIF knowledge: Autoassimilate 12186 | -6/Garrison | P-60 Hacker assimilated allied Guardian 5a 12302 | -6/Garrison | Triggered checkpoint 12366 | -6/Garrison | Triggered checkpoint 12383 | -6/Garrison | Triggered checkpoint 12452 | -6/Garrison | Triggered checkpoint 12636 | -6/Garrison | Learned Factory security intel 12983 | -6/Garrison | Found Gamma Bomb Array 12994 | -6/Garrison | Found Adv. Powered Armor 13029 | -6/Garrison | Found Fusion Bomb Launcher 13106 | -6/Garrison | Discovered new exit (range 9) 13382 | -6/Garrison | Spotted B-75 Beast 13393 | -6/Garrison | Destroyed B-75 Beast 13678 | -6/Garrison | Discovered new exit (range 10) 13697 | -6/Garrison | Entered Factory 13697 | -5/Factory | Evolved 2 slots: Utility x2 14017 | -5/Factory | Build established: Tank 14554 | -5/Factory | Build established: Scavenger-Tank 14597 | -5/Factory | First assault squad dispatched 14601 | -5/Factory | Allied Derelicts emerged from ambush trap array 14701 | -5/Factory | Garrison activated, responded to threat 14877 | -5/Factory | Destroyed 8 combat bots 14912 | -5/Factory | Lost 14 parts (3p2n6u3w) 14913 | -5/Factory | System corruption reached 10% 14916 | -5/Factory | Build established: Mutant 15044 | -5/Factory | Core integrity fell below 50% 15111 | -5/Factory | Lost 15 parts (3p5n2u5w) 15133 | -5/Factory | Discovered new exit (range 16) 15155 | -5/Factory | Entered another Factory area 15155 | -4/Factory | Evolved 2 slots: Propulsion x1, Utility x1 15299 | -4/Factory | Core integrity fell below 50% 15302 | -4/Factory | System corruption reached 10% 15307 | -4/Factory | Discovered new exit (range 8) 15311 | -4/Factory | Entered Upper Caves 15329 | -4/Upper Caves | Lost 3 parts (1n2w) 15387 | -4/Upper Caves | Spotted B-86 Titan 15401 | -4/Upper Caves | Attracted the attention of an 0b10 checkpoint 15457 | -4/Upper Caves | Core integrity fell below 20% 15472 | -4/Upper Caves | Destroyed by L-61 Swordsman with Power Sword Last Messages --------------- 15416_ Searching scrap... 15416_ Found Adv. Heat Sink. 15416_ Found Imp. Remote Datajack. 15416_ Found Unknown Flight Unit. 15416_ Found 22 Matter. 15417_ Acquired Imp. Remote Datajack. 15420_ Acquired 21 matter. 15427_ System corrupted: Energy discharge (-37). 15430_ Acquired derelict log, extracted data. Data stored: Armory entrances (x1). 15432_ Searching scrap... 15432_ Found Remote Datajack. 15432_ Found Imp. Particle Charger. 15432_ Found Antimatter Reactor. 15432_ Found 15 Matter. 15452_ System corrupted: Component data lost. 15456_ Slug penetrates Abandoned Machinery. 15465_ Slammed into G-67 Veteran. 15467_ Destabilizing: Core damaged (-34). 15468_ EODD%VQ6M2VJHKW,RSV#M1QOBQ,> Map ----- +----------------------------------------------------+ | ?????????????????????????# #?????????????????? | | ?????????????????????????# """ #?????????????????? | | ?????????????????????????# """ #?????????????????? | | ????????????????????????## """ #??##?????????????? | | ???????????????????????## """ #?# ##????????????? | | ???????????????????##### ## #????????????? | | ???????????????????# ## #????????????? | | ???????????????????# ## ##???????????? | | ???????????????????# #### #???????????? | | ???????????????????# ##??## #???????????? | | ???????????????????# ##????## #???????????? | | ???????????????????# #??????## #??????????? | | ???????????????????# #####????# #?????????? | | ???????????????????## #?????# #?????????? | | ????????????????????# #??????# ##?????????? | | ????????????????????# ### #???????###??????????? | | ????????????????????# ### ##???????????????????? | | ????????????????????# ## ##??????????????????? | | ????????????????????# ## #??????#???????????? | | ????????????????##### ## ##??? ???????????? | | ????????????????# %| " ### ???????????? | | ????????????????#!*"" " g #? ??#???????? | | ????????????????# """ " gg% ##?# ?? ???????? | | ????????????????# """ ##%##??# ?? #####??? | | ????????????????# "" "" ###%#??## ## #" #??? | | ????????????????# " """"@ #?# #??# #" #??? | | ????????????????# "" l#?# #?? #" +??? | | ????????????????# ### #??# #" +??? | | ????????????????######## #??# ## #? #??? | | ???????????????????????# ######??# ## #? #??? | | ???????????????????????# ##?????# #?# ###+#### | | ???????????????????????# ###???# #### | | ??????????????????????## ##??# ###### | | ?????????????????????## #??## #???# | | ?????????????????????# ##?# #######???# | | ?????????????????????# #?# ###????#### | | ?????????????????????# #?# ##???# | | ????????????????????## #### # ##??## | | ????????????????????# % #???# | | ???????????????????# =! # #???## | | ???????????????? ##### # ##????## | | ??????????????? ###???# ##??????# | | ??????????????? ##?????## ##???????# | | ?????????????? ######???????# #????????## | | ??????????????? ?????????????# ?????????# | | ??????????????? ????????????? ????? | | ???????????????? ?????????????? ? | | ????????????????? ??????????????? # | | ??????????????????????????????????? ### | | ??????????????????????????????????? ##?# | +----------------------------------------------------+ Best States ------------- Heat Dissipation 71 Coolant Potential 65 Energy Generation 37 Energy Capacity 1125 Matter Stores 300 Matter Capacity 500 Sight Range 18 Terrain Scan Density 10 Additional Mass Support 12 Armor Coverage 1000 Resistance: KI 30 Resistance: EX 25 Weapon Shielding 33 Evasion (%) 55 Targeting Accuracy 16 Recoil Reduction 10 Matter Filtering 50 Kinecelleration 30 Defensive Hacking 14 Relay Coupler Types 3 Relay Coupler Value 102 Item Schematics ----------------- None Robot Schematics ------------------ None Fabricated ------------ Nothing Alien Tech Used ----------------- None Achievements -------------- None Challenges ------------ None Game ------ Seed PotentialAlphaBuckler Manual? 0 Play Time 02:37:00 Cumulative 94.5 hours Start 2023.11.28 @ 12:26:29 End 2023.11.28 @ 15:03:33 Sessions 1 Manual Loads 0 Difficulty Rogue Special Mode None Game No. 78 Rogue 75 Adventurer 3 Explorer 0 Win Type - Total 0 Types 0/0/0/0/0/0/0/0/0 Lore% 57 Gallery% 63 Achievement% 49 Wizard Run 0 Options --------- ASCII 0 Keyboard 0 Movement Mouse Keybinds 0 Fullscreen 2 Font 18/SmallcapsGlow Map View 76x50 Tactical HUD 1 Map Filters NONE Filters NONE Steam 1 RUN: cc640332-6443-48a0-b836-4c12df6cc465